bitfinex-derivatives/quotes_ETHF0:USTF0_20250417
["timestamp","ask_amount","ask_price","bid_price","bid_amount"]
[1744920217677,7.47892052,1586.4,1586.3,3.02107]
[1744920217870,6.21823052,1586.4,1586.3,3.02107]
[1744920218071,1.26066,1586.5,1586.4,1.26069]
[1744920218270,1.26066,1586.5,1586.4,2.94999]
[1744920218570,1.26066,1586.5,1586.4,1.6893]
[1744920218769,2.92226,1586.5,1586.4,1.6893]
[1744920219576,1.26077,1586.3,1586.2,11.03627568]
[1744920219762,1.26077,1586.3,1586.2,9.48087568]
[1744920219962,1.26077,1586.3,1586.2,0.00947568]
[1744920220877,6.26077,1586.3,1586.2,0.00947568]
[1744920221074,1.26108,1585.9,1585.8,1.6893]
[1744920221273,1.26116,1585.8,1585.7,93.845]
[1744920221778,1.26116,1585.8,1585.7,6.425]
[1744920223081,1.26116,1585.8,1585.7,4.776]
[1744920223377,4.21636,1585.8,1585.7,4.776]
[1744920223874,4.21636,1585.8,1585.7,6.425]
[1744920225175,4.21636,1585.8,1585.7,1.649]
[1744920227072,1.7667,1585.9,1585.7,1.649]
[1744920227280,1.26108,1585.9,1585.8,7.9778]
[1744920227476,1.26108,1585.9,1585.8,9.23891]
[1744920227779,1.26108,1585.9,1585.8,10.95641]
[1744920228877,1.26108,1585.9,1585.8,9.6953]
[1744920229378,2.96788,1585.9,1585.8,9.6953]
[1744920229880,2.96788,1585.9,1585.8,10.95646]
[1744920230183,1.26108,1585.9,1585.8,10.95646]
[1744920230777,1.26108,1585.9,1585.8,12.34956]
[1744920232282,1.26108,1585.9,1585.8,17.34956]
[1744920232483,1.26108,1585.9,1585.8,12.34956]
[1744920232785,1.26108,1585.9,1585.8,11.0884]
[1744920233784,1.26108,1585.9,1585.8,12.34956]
[1744920234079,1.26108,1585.9,1585.8,11.0884]
[1744920234984,1.26108,1585.9,1585.8,12.34956]
[1744920235574,1.26108,1585.9,1585.8,11.0884]
[1744920235780,1.26108,1585.9,1585.8,12.34956]
[1744920236790,1.26108,1585.9,1585.8,9.6953]
[1744920236986,2.89648,1585.9,1585.8,9.6953]
[1744920237190,2.89648,1585.9,1585.8,10.95646]
[1744920238592,1.6354,1585.9,1585.8,10.95646]
[1744920238791,1.26108,1586.0,1585.9,1.26103]
[1744920238986,2.89648,1586.0,1585.9,2.97783]
[1744920241181,2.89648,1586.0,1585.9,1.7168]
[1744920242099,1.26108,1585.9,1585.8,4.5796]
[1744920242290,3.03408,1585.9,1585.8,6.1907]
[1744920242798,4.60862,1586.3,1585.9,3.15269]
[1744920243098,1.26092,1586.2,1586.1,1.26088]
[1744920243289,1.26092,1586.2,1586.1,1.7535]
[1744920243489,1.26092,1586.2,1586.1,3.01442]
[1744920243692,2.92132,1586.2,1586.1,3.01442]
[1744920244298,1.26092,1586.2,1586.1,3.01442]
[1744920246100,1.26084,1586.2,1586.1,3.01442]
[1744920246400,2.40313,1586.3,1586.2,1.26084]
[1744920246699,2.40313,1586.3,1586.2,4.34124]
[1744920247203,2.40313,1586.3,1586.2,3.0804]
[1744920247498,1.26083,1586.3,1586.2,4.34124]
[1744920247901,6.20740568,1586.4,1586.3,1.26077]
[1744920247902,3.05557568,1586.4,1586.3,1.26077]
[1744920248200,1.27016568,1586.4,1586.3,7.74727]
[1744920248400,1.27016568,1586.4,1586.3,9.20447]
[1744920248596,0.00947568,1586.4,1586.3,9.20447]
[1744920248795,11.44172384,1587.0,1586.3,12.9437]
[1744920248992,6.21823052,1586.9,1586.8,4.46817]
[1744920249299,8.23392384,1587.0,1586.9,1.26029]
[1744920249503,8.23392384,1587.0,1586.8,9.2381]
[1744920249803,9.49419384,1587.0,1586.9,1.7283]
[1744920249993,11.25619384,1587.0,1586.9,4.769]
[1744920250596,8.23392384,1587.0,1586.9,6.02929]
[1744920250895,8.23392384,1587.0,1586.9,7.75759]
[1744920251091,9.49413384,1587.0,1586.9,6.4973]
[1744920251295,9.49413384,1587.0,1586.9,4.769]
[1744920251498,11.25613384,1587.0,1586.9,4.769]
[1744920251893,3.02221,1587.0,1586.9,4.769]
[1744920252094,1.1374,1587.1,1586.9,4.769]
[1744920252397,1.1374,1587.1,1587.0,4.46801]
[1744920252604,1.1374,1587.1,1587.0,7.54821]
[1744920253196,1.1374,1587.1,1587.0,7.62321]
[1744920253606,8.23392384,1587.4,1587.3,1.25997]
[1744920253804,8.23392384,1587.4,1587.3,6.02797]
[1744920254302,8.23392384,1587.4,1587.3,7.78597]
[1744920254502,9.49381384,1587.4,1587.3,6.526]
[1744920254698,11.22271384,1587.4,1587.3,7.78597]
[1744920254904,9.49381384,1587.4,1587.3,7.78597]
[1744920255101,8.23392384,1587.4,1587.3,7.78597]
[1744920255410,9.49381384,1587.4,1587.3,7.78597]
[1744920255905,8.23392384,1587.4,1587.3,7.78597]
[1744920256607,9.49381384,1587.4,1587.3,7.78597]
[1744920257099,1.25989,1587.4,1587.3,7.78597]
[1744920258213,1.4702,1587.8,1587.3,9.67589]
[1744920258409,1.25978,1587.6,1587.5,3.2078]
[1744920258710,1.25978,1587.6,1587.5,7.9688]
[1744920259309,1.25978,1587.6,1587.5,8.0438]
[1744920260114,1.25978,1587.6,1587.5,9.30361]
[1744920260516,1.25978,1587.6,1587.5,4.836]
[1744920260814,2.69048,1587.6,1587.5,4.836]
[1744920261015,2.69048,1587.6,1587.5,6.09581]
[1744920261913,3.14866,1588.0,1587.5,9.30361]
[1744920262116,2.9762,1587.7,1587.6,1.25967]
[1744920262310,1.25973,1587.6,1587.5,6.09581]
[1744920262622,4.39363,1587.6,1587.5,4.84547568]
[1744920263215,9.39363,1587.6,1587.5,0.00947568]
[1744920263611,9.39363,1587.6,1587.2,4.76]
[1744920263612,1.25997,1587.3,1587.2,4.76]
[1744920264219,1.25997,1587.3,1587.2,4.835]
[1744920264416,2.61647,1587.3,1587.2,4.835]
[1744920265121,2.61647,1587.3,1587.2,4.76]
[1744920266217,2.61647,1587.3,1587.2,4.835]
[1744920267318,2.61647,1587.3,1587.2,4.76]
[1744920268212,2.61647,1587.3,1587.2,6.02005]
[1744920268413,2.61647,1587.3,1587.2,6.5411]
[1744920269121,2.61647,1587.3,1587.2,4.76]
[1744920270421,2.61647,1587.3,1587.2,6.3938]
[1744920271123,1.3565,1587.3,1587.2,7.65385]
[1744920271315,2.61647,1587.3,1587.2,7.65385]
[1744920271718,2.61647,1587.3,1587.2,6.3938]
[1744920272214,2.61647,1587.3,1587.2,4.76]
[1744920272622,1.26005,1587.2,1587.1,0.00947568]
[1744920272830,0.00947568,1587.4,1587.3,1.25997]
[1744920273015,0.00947568,1587.4,1587.3,10.66027]
[1744920273216,0.00947568,1587.4,1587.3,12.30317]
[1744920273422,0.00947568,1587.4,1587.3,17.30317]
[1744920276322,0.00947568,1587.4,1587.3,12.30317]
[1744920277119,1.26936568,1587.4,1587.3,12.30317]
[1744920277326,0.00947568,1587.4,1587.3,12.30317]
[1744920278321,0.00947568,1587.4,1587.3,17.30317]
[1744920279525,0.00947568,1587.4,1587.3,12.30317]
[1744920279723,1.26936568,1587.4,1587.3,12.30317]
[1744920279925,0.00947568,1587.4,1587.3,12.30317]
[1744920280129,2.8523,1587.8,1587.6,1.25967]
[1744920280325,2.8523,1587.8,1587.6,4.759]
[1744920280530,5.83397,1587.8,1587.7,1.638]
[1744920281729,5.83397,1587.8,1587.7,2.89765]
[1744920282426,3.14814,1588.3,1587.8,3.14876]
[1744920282628,1.25941,1588.1,1588.0,1.2594]
[1744920282823,1.25941,1588.1,1588.0,2.9468]
[1744920283030,3.1257,1588.2,1588.0,1.6874]
[1744920283220,3.1257,1588.2,1588.1,1.25934]
[1744920283428,1.25934,1588.1,1588.0,1.6874]
[1744920283725,1.25942,1588.0,1587.9,3.21724495]
[1744920283920,1.25942,1588.0,1587.9,7.71533495]
[1744920284228,3.01526,1588.1,1588.0,1.25942]
[1744920284429,1.25942,1588.0,1587.9,7.71528495]
[1744920284730,1.25942,1588.0,1587.9,10.92308495]
[1744920285029,1.25942,1588.0,1587.9,9.66364495]
[1744920285226,1.25957,1587.8,1587.7,3.2078]
[1744920285537,1.2599,1587.4,1587.1,6.30062]
[1744920285827,1.2599,1587.4,1587.3,4.3935]
[1744920286131,1.2599,1587.4,1587.3,9.1525]
[1744920286830,1.4584,1587.6,1587.3,7.8926]
[1744920287030,1.25983,1587.5,1587.4,1.7202]
[1744920287530,3.1065,1587.6,1587.4,6.4782]
[1744920287827,3.1065,1587.6,1587.4,3.1073]
[1744920288020,7.57403,1587.6,1587.5,1.7202]
[1744920288428,4.36623,1587.6,1587.5,1.7202]
[1744920288627,4.36623,1587.6,1587.5,2.98001]
[1744920289125,4.36623,1587.6,1587.5,1.7202]
[1744920289320,5.92593,1587.6,1587.5,2.98001]
[1744920289522,2.71813,1587.6,1587.5,2.98001]
[1744920290122,2.71813,1587.6,1587.5,7.73301]
[1744920290631,1.3174,1587.9,1587.5,6.4732]
[1744920290931,6.35694,1587.7,1587.2,3.21724495]
[1744920291128,1.25984,1587.5,1587.4,1.25982]
[1744920291326,1.25984,1587.5,1587.4,3.04042]
[1744920291526,1.25984,1587.5,1587.4,1.7806]
[1744920291725,2.93184,1587.5,1587.4,3.04049]
[1744920292935,2.93184,1587.5,1587.4,1.7806]
[1744920293527,2.93184,1587.5,1587.2,0.00944495]
[1744920293528,1.25997,1587.3,1587.2,0.00944495]
[1744920293930,1.25997,1587.3,1587.2,1.26949495]
[1744920294130,2.93197,1587.3,1587.2,1.79004495]
[1744920294636,4.24937,1587.3,1587.2,1.79004495]
[1744920294837,4.24937,1587.3,1587.2,0.00944495]
[1744920296133,2.9894,1587.3,1587.2,1.26949495]
[1744920296329,4.40104,1587.4,1587.3,1.25997]
[1744920296928,4.40104,1587.4,1587.3,2.91977]
[1744920298038,1.7617,1587.4,1587.3,2.91977]
[1744920298231,1.25988,1587.5,1587.4,1.25989]
[1744920298433,1.25988,1587.5,1587.4,7.68709]
[1744920298833,3.02918,1587.5,1587.4,6.4272]
[1744920299036,3.02918,1587.5,1587.4,7.68709]
[1744920299335,3.02918,1587.5,1587.4,6.4272]
[1744920299940,3.02918,1587.5,1587.4,7.68709]
[1744920300929,1.25988,1587.5,1587.4,7.68709]
[1744920301135,1.25988,1587.5,1587.4,9.06089]
[1744920301336,2.96148,1587.5,1587.4,6.4272]
[1744920301931,2.96148,1587.5,1587.4,6.01289]
[1744920302332,2.96148,1587.5,1587.4,4.753]
[1744920303642,1.25997,1587.4,1587.3,1.25996]
[1744920303833,1.25997,1587.3,1587.2,4.76244495]
[1744920304038,4.03367,1587.3,1587.2,4.76244495]
[1744920304337,5.66377,1587.3,1587.2,6.02249495]
[1744920304845,5.66377,1587.3,1587.2,7.71349495]
[1744920305029,2.7737,1587.3,1587.2,7.71349495]
[1744920305234,1.25996,1587.4,1587.3,1.2599]
[1744920305433,1.25996,1587.4,1587.3,2.9509]
[1744920305943,1.25996,1587.4,1587.3,7.7039]
[1744920307643,4.77965,1587.5,1587.2,1.26943495]
[1744920307644,1.25997,1587.3,1587.2,1.26943495]
[1744920307840,10.62537,1587.3,1587.2,4.95e-06]
[1744920308040,15.62537,1587.3,1587.2,4.95e-06]
[1744920308241,12.56257,1587.3,1587.2,4.95e-06]
[1744920309236,12.63757,1587.3,1587.2,4.95e-06]
[1744920309731,1.26037,1586.8,1586.7,12.58602685]
[1744920309935,4.46817,1586.8,1586.7,12.58602685]
[1744920310136,1.26061,1586.5,1586.4,9.13158]
[1744920310337,1.26061,1586.5,1586.4,9.12234145]
[1744920310535,1.26061,1586.5,1586.4,4.36834145]
[1744920310849,1.26061,1586.5,1586.4,9.12234145]
[1744920311150,1.26069,1586.4,1586.3,0.00944495]
[1744920311350,6.14239,1586.4,1586.3,0.00944495]
[1744920311644,2.93459,1586.4,1586.3,0.00944495]
[1744920312042,1.2812,1586.5,1586.3,0.00944495]
[1744920312346,1.26069,1586.4,1586.3,1.78054495]
[1744920312755,2.91899,1586.4,1586.3,1.78054495]
[1744920312940,2.91899,1586.4,1586.3,0.00944495]
[1744920314152,2.91899,1586.4,1586.2,5.91689335]
[1744920314153,1.26077,1586.3,1586.2,5.91689335]
[1744920314449,1.26116,1585.8,1585.7,9.2141]
[1744920314651,1.26116,1585.8,1585.7,4.4591]
[1744920315553,1.26116,1585.8,1585.7,1.7738]
[1744920315849,1.26124,1585.7,1585.6,14.30695311]
[1744920316040,1.26124,1585.7,1585.6,15.94265311]
[1744920316437,9.46904,1585.7,1585.6,12.66974311]
[1744920317153,9.54404,1585.7,1585.6,11.36526311]
[1744920317947,4.54404,1585.7,1585.6,11.36526311]
[1744920318144,4.46904,1585.7,1585.6,11.36526311]
[1744920318745,4.46904,1585.7,1585.6,0.00944495]
[1744920321942,9.46904,1585.7,1585.6,4.95e-06]
[1744920322552,11.09524,1585.7,1585.6,4.95e-06]
[1744920323052,6.09524,1585.7,1585.6,4.95e-06]
[1744920331952,7.52594,1585.7,1585.6,4.95e-06]
[1744920341167,7.60094,1585.7,1585.6,4.95e-06]
[1744920341765,1.26148,1585.4,1585.3,1.6653]
[1744920341973,1.26164,1585.2,1585.1,1.359]
[1744920342271,4.46944,1585.2,1585.1,1.359]
[1744920342464,4.46944,1585.2,1585.0,1.3802]
[1744920342465,1.26172,1585.1,1585.0,3.0455]
[1744920343069,2.99182,1585.1,1585.0,3.0455]
[1744920346467,1.2618,1585.0,1584.9,0.00944495]
[1744920346767,1.2618,1585.0,1584.8,1.359]
[1744920346768,1.26188,1584.9,1584.8,1.359]
[1744920346972,1.26196,1584.8,1584.7,1.4564]
[1744920347158,4.46976,1584.8,1584.7,1.4564]
[1744920347565,6.25196,1584.8,1584.7,1.4564]
[1744920349675,4.46976,1584.8,1584.7,6.4564]
[1744920349881,4.46976,1584.8,1584.7,7.71844]
[1744920350074,4.46976,1584.8,1584.7,9.5775]
[1744920351178,4.46976,1584.8,1584.7,10.83954]
[1744920351374,1.26196,1584.8,1584.7,10.83954]
[1744920352389,1.26193,1584.9,1584.8,1.2619]
[1744920352588,1.26193,1584.9,1584.8,3.0209]
[1744920352790,1.26193,1584.9,1584.8,8.0209]
[1744920353093,1.26193,1584.9,1584.8,15.9817]
[1744920353485,1.26193,1584.9,1584.8,6.512]
[1744920354393,1.26193,1584.9,1584.8,1.759]
[1744920355295,4.46973,1584.9,1584.8,1.759]
[1744920355792,1.26204,1584.7,1584.6,0.00944495]
[1744920356088,4.46984,1584.7,1584.6,0.00944495]
[1744920356496,1.26262,1584.0,1583.9,1.26262]
[1744920356689,3.2078,1584.2,1584.0,1.26258]
[1744920356991,3.2078,1584.4,1584.0,11.11814]
[1744920357291,3.2078,1584.4,1584.0,16.19314]
[1744920357595,4.47959495,1584.4,1584.3,1.26236]
[1744920357786,1.27179495,1584.4,1584.3,6.26236]
[1744920358190,1.27179495,1584.4,1584.3,9.37656]
[1744920359095,0.00944495,1584.4,1584.3,14.13056]
[1744920359995,1.27172495,1584.4,1584.3,14.13056]
[1744920360194,0.00944495,1584.4,1584.3,14.13056]
[1744920360391,1.26236,1584.3,1584.2,0.075]
[1744920360693,1.27179495,1584.4,1584.3,1.26236]
[1744920360885,0.00944495,1584.4,1584.3,1.26236]
[1744920361084,0.00944495,1584.4,1584.3,6.26236]
[1744920361288,1.27172495,1584.4,1584.3,6.26236]
[1744920361895,1.27172495,1584.4,1584.3,9.5608]
[1744920362293,1.27172495,1584.4,1584.3,14.3148]
[1744920362494,1.27172495,1584.4,1584.3,15.57716]
[1744920362793,1.27172495,1584.4,1584.3,10.57716]
[1744920362993,1.27172495,1584.4,1584.3,9.3148]
[1744920363792,4.47952495,1584.4,1584.3,1.6153]
[1744920363985,1.26236,1584.3,1584.2,0.075]
[1744920364188,2.94296,1584.3,1584.2,1.6153]
[1744920365089,1.26244,1584.2,1584.1,1.4518]
[1744920365284,2.97444,1584.2,1584.1,3.1276]
[1744920367496,2.97444,1584.2,1584.1,4.39012]
[1744920367497,1.26244,1584.2,1584.1,4.39012]
[1744920370195,1.26244,1584.2,1584.1,3.1276]
[1744920370994,2.88954,1584.2,1584.1,3.1276]
[1744920372302,1.26252,1584.1,1584.0,0.08139339]
[1744920372497,2.88962,1584.1,1584.0,0.08139339]
[1744920372900,2.88962,1584.1,1584.0,1.81769339]
[1744920373796,2.88962,1584.1,1584.0,0.08139339]
[1744920374299,2.88962,1584.1,1584.0,0.00639339]
[1744920375299,7.88962,1584.1,1584.0,0.00639339]
[1744920376004,7.88962,1584.1,1584.0,3.39e-06]
[1744920377803,1.26299,1583.5,1583.4,7.76347]
[1744920378004,1.26299,1583.5,1583.4,6.5004]
[1744920378200,1.26299,1583.5,1583.4,4.831]
[1744920378595,2.95629,1583.5,1583.4,0.075]
[1744920379204,1.26307,1583.4,1583.3,8.38061481]
[1744920379401,2.95637,1583.4,1583.3,8.38061481]
[1744920379711,1.26323,1583.2,1583.1,4.752]
[1744920380097,1.26323,1583.2,1583.1,1.7263]
[1744920380305,1.26331,1583.1,1583.0,4.827]
[1744920380502,2.67881,1583.1,1583.0,0.075]
[1744920381198,1.26339,1583.0,1582.9,0.075]
[1744920381398,3.02579,1583.0,1582.9,0.075]
[1744920381595,1.4155,1583.1,1583.0,1.26339]
[1744920381893,1.27247495,1583.5,1583.4,1.26307]
[1744920382091,1.77184495,1583.5,1583.4,1.26307]
[1744920382302,3.03483495,1583.5,1583.4,0.075]
[1744920382695,3.03483495,1583.5,1583.4,1.33807]
[1744920382899,0.00944495,1583.5,1583.4,6.21577]
[1744920383506,4.32904,1583.9,1583.5,3.15735]
[1744920383699,1.2628,1583.8,1583.7,1.26278]
[1744920383896,5.83785378,1583.9,1583.4,0.075]
[1744920384103,1.26307,1583.4,1583.3,1.27255508]
[1744920384498,1.26307,1583.5,1583.4,1.26305]
[1744920384698,1.27254508,1583.5,1583.4,1.26305]
[1744920385108,1.27254508,1583.5,1583.4,1.33805]
[1744920385307,0.00947508,1583.5,1583.4,1.33805]
[1744920385605,1.27246508,1583.5,1583.4,1.33805]
[1744920387911,1.27246508,1583.5,1583.4,0.075]
[1744920388610,3.05216508,1583.5,1583.4,0.075]
[1744920389200,1.26307,1583.4,1583.3,9.23336508]
[1744920389407,3.01867,1583.4,1583.3,9.23336508]
[1744920391107,3.01867,1583.4,1583.3,4.76247508]
[1744920391404,3.01867,1583.4,1583.3,6.02562508]
[1744920392109,0.00947508,1583.5,1583.4,1.26307]
[1744920392311,1.26307,1583.4,1583.3,6.02562508]
[1744920393703,2.89577,1583.4,1583.3,6.02562508]
[1744920393903,2.89577,1583.4,1583.3,4.76247508]
[1744920394103,2.89577,1583.4,1583.3,0.00947508]
[1744920394509,2.89577,1583.4,1583.3,1.27262508]
[1744920395603,1.27246508,1583.5,1583.4,1.26307]
[1744920396008,1.27246508,1583.5,1583.4,2.92457]
[1744920397805,0.00947508,1583.5,1583.4,2.92457]
[1744920397998,1.27246508,1583.5,1583.4,2.92457]
[1744920398404,0.00947508,1583.5,1583.4,2.92457]
[1744920398607,1.3857,1583.7,1583.4,2.92457]
[1744920398608,2.91416,1583.8,1583.7,1.26284]
[1744920398810,5.90084,1583.9,1583.8,1.26276]
[1744920399609,7.55224,1583.9,1583.8,2.92676]
[1744920399908,7.55224,1583.9,1583.8,1.664]
[1744920400109,1.26276,1583.8,1583.6,6.01589]
[1744920400310,1.26284,1583.7,1583.6,6.01589]
[1744920401909,2.98952,1583.8,1583.7,1.26284]
[1744920402208,2.98952,1583.8,1583.7,2.92864]
[1744920402409,3.2078,1583.9,1583.8,1.26276]
[1744920402603,3.2078,1583.9,1583.8,4.23056]
[1744920402804,4.47048,1583.9,1583.8,4.23056]
[1744920403801,1.26268,1583.9,1583.8,4.23056]
[1744920404511,1.27214508,1584.0,1583.9,1.26268]
[1744920404811,1.27214508,1584.0,1583.9,7.69898]
[1744920405311,3.02494508,1584.0,1583.9,7.69898]
[1744920405813,0.00947508,1584.0,1583.9,7.69898]
[1744920406010,5.08e-06,1584.0,1583.9,12.69898]
[1744920406206,5.08e-06,1584.0,1583.9,12.77398]
[1744920408007,5.08e-06,1584.0,1583.9,13.23821971]
[1744920408208,4.15725378,1584.5,1583.9,13.23821971]
[1744920408409,4.15725378,1584.5,1584.4,1.26228]
[1744920408610,4.15725378,1584.5,1584.4,6.01528]
[1744920408911,4.15725378,1584.5,1584.4,15.37648]
[1744920409311,4.15725378,1584.5,1584.4,15.45148]
[1744920409512,4.15725378,1584.5,1584.4,10.44648]
[1744920411016,6.31179934,1584.6,1584.5,1.2622]
[1744920411215,6.31179934,1584.6,1584.5,6.282]
[1744920411416,0.00947508,1584.6,1584.5,6.282]
[1744920412717,1.3129,1585.0,1584.9,1.26188]
[1744920412911,1.3129,1585.0,1584.9,6.00888]
[1744920413112,2.58563,1585.3,1585.0,1.2618]
[1744920413312,5.45470826,1585.4,1585.3,1.26156]
[1744920413608,7.23300826,1585.4,1585.3,6.00856]
[1744920413816,1.26156,1585.3,1585.2,4.75647508]
[1744920414010,4.36386,1585.3,1585.2,4.75647508]
[1744920414215,12.57166,1585.3,1585.2,0.00947508]
[1744920415406,9.36386,1585.3,1585.2,0.00947508]
[1744920415606,12.57166,1585.3,1585.2,0.00947508]
[1744920416518,9.36386,1585.3,1585.2,0.00947508]
[1744920418114,4.36386,1585.3,1585.2,0.00947508]
[1744920418311,4.36386,1585.3,1585.2,1.27111508]
[1744920418623,1.7783,1585.3,1585.2,9.22491508]
[1744920419213,1.26153,1585.4,1585.3,1.26156]
[1744920419418,1.26153,1585.4,1585.3,2.98066]
[1744920419619,1.26153,1585.4,1585.3,1.7191]
[1744920419820,1.26156,1585.3,1585.2,9.29987508]
[1744920420319,1.26156,1585.3,1585.2,11.01897508]
[1744920421421,2.88894,1585.4,1585.3,1.26156]
[1744920421621,2.88894,1585.4,1585.3,2.98066]
[1744920422516,2.50824508,1585.5,1585.4,1.26148]
[1744920422721,3.04104,1585.8,1585.7,1.26124]
[1744920423021,1.77056145,1585.8,1585.7,1.26124]
[1744920423216,1.26113,1585.9,1585.8,1.2611]
[1744920423418,3.84832,1586.0,1585.9,1.26108]
[1744920423618,3.84832,1586.0,1585.9,6.00608]
[1744920424223,2.5873,1586.0,1585.8,1.7458]
[1744920424415,1.26108,1585.9,1585.8,3.00694]
[1744920424614,1.26108,1585.9,1585.8,1.7458]
[1744920424816,3.84833,1586.0,1585.8,1.7458]
[1744920425116,3.84833,1586.0,1585.9,1.26108]
[1744920425316,1.26108,1585.9,1585.8,1.7458]
[1744920425520,1.26116,1585.8,1585.7,6.0549]
[1744920425716,1.26116,1585.8,1585.7,7.7169]
[1744920425919,1.26114,1585.9,1585.8,1.26115]
[1744920426118,2.90214,1585.9,1585.8,1.26115]
[1744920426319,2.5873,1586.0,1585.9,1.26108]
[1744920426624,2.4991,1586.0,1585.9,1.26108]
[1744920426823,2.4991,1586.0,1585.9,2.92308]
[1744920427819,1.26108,1585.9,1585.8,1.26111]
[1744920428122,3.15311,1585.7,1585.4,3.2078]
[1744920428422,1.2614,1585.5,1585.4,3.19856145]
[1744920428619,1.2614,1585.5,1585.4,4.46004145]
[1744920428823,3.0062,1585.5,1585.4,4.46004145]
[1744920429020,3.0062,1585.5,1585.4,3.19856145]
[1744920429328,1.26148,1585.4,1585.3,6.00556]
[1744920429527,1.7448,1585.4,1585.3,6.00556]
[1744920429729,3.00628,1585.4,1585.3,7.75306]
[1744920430025,1.7448,1585.4,1585.3,7.75306]
[1744920430622,1.26142,1585.5,1585.4,1.26148]
[1744920430824,3.00622,1585.5,1585.4,6.21678]
[1744920431930,1.26122,1585.8,1585.7,1.2612]
[1744920432121,2.93418145,1585.8,1585.7,6.0802]
[1744920433027,1.6822,1585.8,1585.7,6.0802]
[1744920433231,2.94336,1585.8,1585.7,7.785]
[1744920433730,1.26116,1585.8,1585.7,7.785]
[1744920434230,1.26116,1585.8,1585.7,4.819]
[1744920434733,1.26116,1585.8,1585.7,6.08024]
[1744920435231,2.94333,1585.9,1585.8,1.26116]
[1744920435431,2.94335,1585.9,1585.8,1.26116]
[1744920436030,1.26116,1585.8,1585.7,7.69028]
[1744920436225,2.97976,1585.8,1585.7,7.69028]
[1744920436421,2.97976,1585.8,1585.7,6.4291]
[1744920436625,2.97976,1585.8,1585.7,4.744]
[1744920436826,2.97976,1585.8,1585.7,6.00524]
[1744920438130,1.7186,1585.8,1585.7,6.00524]
[1744920438325,2.5709,1586.0,1585.9,1.26108]
[1744920438633,2.94900508,1586.1,1586.0,1.261]
[1744920438832,2.94900508,1586.1,1586.0,6.0]
[1744920439328,2.94899508,1586.1,1586.0,6.0]
[1744920439935,2.94899508,1586.1,1586.0,4.739]
[1744920440436,4.20269508,1586.1,1586.0,4.739]
[1744920442333,4.20269508,1586.1,1586.0,6.0]
[1744920443535,4.20269508,1586.1,1586.0,4.739]
[1744920444130,0.00947508,1586.1,1586.0,9.2078]
[1744920444327,0.00947508,1586.1,1586.0,6.0]
[1744920444535,0.00947508,1586.1,1586.0,7.7026]
[1744920444837,0.00947508,1586.1,1586.0,15.9104]
[1744920445037,0.00947508,1586.1,1586.0,17.1774]
[1744920445230,0.00947508,1586.1,1586.0,17.2524]
[1744920445631,0.00947508,1586.1,1586.0,7.7776]
[1744920446539,1.72427508,1586.1,1586.0,7.7776]
[1744920446936,2.98519508,1586.1,1586.0,4.814]
[1744920447136,2.98519508,1586.1,1586.0,4.739]
[1744920447537,4.32949508,1586.1,1586.0,4.739]
[1744920449341,4.32949508,1586.1,1586.0,6.0]
[1744920449543,2.98519508,1586.1,1586.0,4.739]
[1744920449843,1.27039508,1586.1,1586.0,4.739]
[1744920450138,1.27039508,1586.1,1586.0,6.0]
[1744920450337,1.27039508,1586.1,1586.0,9.2078]
[1744920450536,1.27039508,1586.1,1586.0,6.0]
[1744920451241,0.00947508,1586.1,1586.0,14.2078]
[1744920452132,1.27039508,1586.1,1586.0,9.2828]
[1744920452337,0.00947508,1586.1,1586.0,9.2828]
[1744920454838,1.27039508,1586.1,1586.0,9.2828]
[1744920455344,0.00947508,1586.1,1586.0,9.79842668]
[1744920455538,0.00947508,1586.1,1586.0,9.2828]
[1744920460945,1.26069,1586.4,1586.3,1.26077]
[1744920461144,1.26069,1586.4,1586.3,4.737]
[1744920461837,1.26069,1586.4,1586.3,5.99777]
[1744920463042,4.47471642,1586.5,1586.4,1.26069]
[1744920463241,1.26069,1586.4,1586.3,5.99771]
[1744920464348,0.00624642,1586.5,1586.4,1.26069]
[1744920466050,0.00624642,1586.5,1586.4,4.46849]
[1744920466248,0.00624642,1586.5,1586.4,9.54349]
[1744920466550,6.30232426,1586.9,1586.8,1.26037]
[1744920466858,6.30232426,1586.9,1586.8,5.99637]
[1744920469851,7.56261426,1586.9,1586.8,5.99637]
[1744920470248,6.30232426,1586.9,1586.8,5.99637]
[1744920470551,7.56261426,1586.9,1586.8,5.99137]
[1744920470757,1.26029,1586.9,1586.8,5.99137]
[1744920474959,3.2078,1587.1,1586.8,4.731]
[1744920475155,4.46799,1587.1,1587.0,1.26021]
[1744920475555,6.26019,1587.1,1587.0,1.26021]
[1744920476253,9.46799,1587.1,1587.0,1.26021]
[1744920477959,1.26028,1587.0,1586.9,1.26022]
[1744920480354,4.46796,1587.1,1587.0,1.26021]
[1744920480555,1.26016,1587.1,1587.0,1.26021]
[1744920481360,1.26025,1587.0,1586.9,1.26021]
[1744920481759,1.26021,1587.1,1587.0,1.26021]
[1744920482461,1.26021,1587.1,1587.0,5.99021]
[1744920482663,1.26021,1587.1,1587.0,9.19801]
[1744920482962,1.26021,1587.1,1587.0,5.99021]
[1744920483160,1.2599,1587.5,1587.4,1.25986]
[1744920483378,1.25987,1587.5,1587.4,4.73]
[1744920483858,1.25987,1587.5,1587.4,5.98989]
[1744920484063,1.25987,1587.5,1587.3,0.00947508]
[1744920484064,1.25989,1587.4,1587.3,1.26938508]
[1744920484758,1.25989,1587.4,1587.3,5.99938508]
[1744920485562,3.2078,1587.6,1587.5,1.25981]
[1744920485762,1.25971,1587.7,1587.6,1.25971]
[1744920486063,4.17591,1587.7,1587.6,5.98971]
[1744920487166,9.51012426,1587.8,1587.7,1.25965]
[1744920487366,6.30232426,1587.8,1587.7,3.01665]